[Event "Championnat du monde jeunes U12"]
[Date "2024.11.18"]
[White "Sobirov, Afruzbek"]
[Black "Karthi, Jashith"]
[WhiteElo "1928"]
[BlackElo "2073"]
[Round "4.13"]
[Result "1/2-1/2"]
[TimeControl "5400+30"]

1. e4 {[%clk 1:30:55]} 1... c5 {[%clk 1:30:56]} 2. Nf3 {[%clk 1:31:20]} 2... e6
{[%clk 1:31:22]} 3. Qe2 {[%clk 1:31:44]} 3... Nc6 {[%clk 1:31:19]} 4. g3 {[%clk
1:32:03]} 4... g6 {[%clk 1:31:09]} 5. Bg2 {[%clk 1:31:09]} 5... Bg7 {[%clk
1:31:33]} 6. O-O {[%clk 1:30:58]} 6... Nge7 {[%clk 1:31:46]} 7. c3 {[%clk
1:28:47]} 7... e5 {[%clk 1:28:58]} 8. d4 {[%clk 1:19:28]} 8... cxd4 {[%clk
1:25:48]} 9. cxd4 {[%clk 1:19:51]} 9... exd4 {[%clk 1:24:48]} 10. Bf4 {[%clk
1:18:49]} 10... O-O {[%clk 1:23:17]} 11. Bd6 {[%clk 1:18:13]} 11... Re8 {[%clk
1:19:46]} 12. Qc4 {[%clk 1:11:48]} 12... Na5 {[%clk 1:10:52]} 13. Qc1 {[%clk
1:12:06]} 13... Qb6 {[%clk 0:58:36]} 14. Bc5 {[%clk 1:03:33]} 14... Qa6 {[%clk
0:53:28]} 15. Nbd2 {[%clk 0:59:57]} 15... d3 {[%clk 0:43:39]} 16. b4 {[%clk
0:54:41]} 16... Nac6 {[%clk 0:37:44]} 17. a4 {[%clk 0:44:14]} 17... b5 {[%clk
0:35:18]} 18. a5 {[%clk 0:44:24]} 18... d6 {[%clk 0:33:46]} 19. Bxd6 {[%clk
0:37:45]} 19... Be6 {[%clk 0:32:27]} 20. Ra3 {[%clk 0:31:12]} 20... Rad8 {[%clk
0:28:43]} 21. Bc5 {[%clk 0:30:58]} 21... Ne5 {[%clk 0:25:37]} 22. Nxe5 {[%clk
0:21:24]} 22... Bxe5 {[%clk 0:26:01]} 23. f4 {[%clk 0:18:00]} 23... Bd4+ {[%clk
0:25:41]} 24. Bxd4 {[%clk 0:17:37]} 24... Rxd4 {[%clk 0:26:05]} 25. f5 {[%clk
0:17:52]} 25... gxf5 {[%clk 0:23:52]} 26. exf5 {[%clk 0:17:38]} 26... Bd5 {[%clk
0:16:53]} 27. Bxd5 {[%clk 0:08:13]} 27... Rxd5 {[%clk 0:15:19]} 28. Ne4 {[%clk
0:06:10]} 28... d2 {[%clk 0:13:10]} 29. Qa1 {[%clk 0:06:06]} 29... d1=Q {[%clk
0:11:49]} 30. Rxd1 {[%clk 0:06:27]} 30... Rxd1+ {[%clk 0:12:08]} 31. Qxd1 {[%clk
0:06:52]} 31... Nxf5 {[%clk 0:11:57]} 32. Qg4+ {[%clk 0:07:03]} 32... Ng7 {[%clk
0:11:51]} 33. Rf3 {[%clk 0:06:46]} 33... h5 {[%clk 0:10:53]} 34. Qh4 {[%clk
0:06:19]} 34... Kf8 {[%clk 0:09:39]} 35. Nf6 {[%clk 0:02:39]} 35... Re1+ {[%clk
0:09:20]} 36. Kf2 {[%clk 0:02:27]} 36... Qe6 {[%clk 0:09:27]} 37. Nd7+ {[%clk
0:02:08]} 37... Ke8 {[%clk 0:09:28]} 38. Nf6+ {[%clk 0:02:06]} 38... Kf8 {[%clk
0:09:55]} 39. Nd7+ {[%clk 0:00:46]} 39... Ke8 {[%clk 0:10:20]} 40. Nf6+ {[%clk
0:01:09]} 40... Kf8 {[%clk 0:10:47]} 41. Nd7+ {[%clk 0:00:35]} 41... Ke8 {[%clk
0:11:11]} 1/2-1/2

[Variant "Standard"]
[Site "Europe Echecs"]

[Event "Championnat du monde jeunes U12"]
[Date "2024.11.18"]
[White "Aansh Nandan Nerurkar"]
[Black "Dauren, Darmen"]
[WhiteElo "2247"]
[BlackElo "1820"]
[Round "4.14"]
[Result "1-0"]
[TimeControl "5400+30"]

1. e4 {[%clk 1:30:58]} 1... c5 {[%clk 1:30:43]} 2. Nf3 {[%clk 1:31:22]} 2... Nf6
{[%clk 1:31:07]} 3. e5 {[%clk 1:31:44]} 3... Nd5 {[%clk 1:31:32]} 4. Nc3 {[%clk
1:32:08]} 4... e6 {[%clk 1:31:55]} 5. Nxd5 {[%clk 1:31:22]} 5... exd5 {[%clk
1:32:17]} 6. d4 {[%clk 1:31:47]} 6... Nc6 {[%clk 1:32:06]} 7. dxc5 {[%clk
1:31:09]} 7... Bxc5 {[%clk 1:32:08]} 8. Qxd5 {[%clk 1:31:00]} 8... d6 {[%clk
1:32:25]} 9. exd6 {[%clk 1:31:20]} 9... Qb6 {[%clk 1:32:46]} 10. Bc4 {[%clk
1:26:42]} 10... Bxf2+ {[%clk 1:30:09]} 11. Kd1 {[%clk 1:26:20]} 11... O-O {[%clk
1:28:35]} 12. c3 {[%clk 1:13:36]} 12... Be6 {[%clk 1:25:20]} 13. Qd3 {[%clk
1:12:11]} 13... Bxc4 {[%clk 1:24:13]} 14. Qxc4 {[%clk 1:12:37]} 14... Qc5 {[%clk
1:24:18]} 15. Qxc5 {[%clk 1:10:21]} 15... Bxc5 {[%clk 1:24:10]} 16. Bf4 {[%clk
1:08:13]} 16... Bxd6 {[%clk 1:23:09]} 17. Bxd6 {[%clk 1:08:36]} 17... Rad8
{[%clk 1:23:27]} 18. Kc2 {[%clk 1:08:49]} 18... Rxd6 {[%clk 1:23:52]} 19. Rhe1
{[%clk 1:08:53]} 19... Rfd8 {[%clk 1:20:40]} 20. Re2 {[%clk 1:08:46]} 20... f6
{[%clk 1:20:01]} 21. Rae1 {[%clk 1:09:10]} 21... Kf7 {[%clk 1:20:00]} 22. a4
{[%clk 1:06:35]} 22... a5 {[%clk 1:17:44]} 23. Rf2 {[%clk 1:01:01]} 23... h6
{[%clk 1:14:25]} 24. Nd2 {[%clk 0:58:41]} 24... Re8 {[%clk 1:10:44]} 25. Rxe8
{[%clk 0:55:44]} 25... Kxe8 {[%clk 1:11:12]} 26. Nc4 {[%clk 0:55:30]} 26... Re6
{[%clk 1:10:43]} 27. Rd2 {[%clk 0:55:20]} 27... Ke7 {[%clk 1:09:31]} 28. Kd1
{[%clk 0:54:50]} 28... Ne5 {[%clk 0:46:11]} 29. Nxa5 {[%clk 0:48:12]} 29... b6
{[%clk 0:45:07]} 30. Nb3 Nc4 {[%clk 0:43:43]} 31. Rf2 {[%clk 0:47:12]} 31...
Ne3+ {[%clk 0:43:29]} 32. Kd2 {[%clk 0:47:37]} 32... Ng4 {[%clk 0:43:38]} 33.
Rf4 {[%clk 0:46:55]} 33... Ne5 {[%clk 0:39:15]} 34. Nd4 {[%clk 0:46:24]} 34...
Rd6 {[%clk 0:39:38]} 35. Ke2 {[%clk 0:46:13]} 35... Rd7 {[%clk 0:38:42]} 36.
Nf5+ {[%clk 0:43:28]} 36... Ke6 {[%clk 0:39:00]} 37. Nd4+ {[%clk 0:43:55]} 37...
Kf7 {[%clk 0:36:51]} 38. b3 {[%clk 0:44:13]} 38... Rc7 {[%clk 0:35:48]} 39. Kd2
{[%clk 0:43:31]} 39... Nd7 {[%clk 0:35:57]} 40. Nb5 {[%clk 0:43:23]} 40... Rc6
{[%clk 0:36:13]} 41. Rc4 {[%clk 0:42:00]} 41... Rxc4 {[%clk 0:32:27]} 42. Nd6+
{[%clk 0:42:29]} 42... Ke6 {[%clk 0:32:49]} 43. Nxc4 {[%clk 0:42:56]} 43... Kd5
{[%clk 0:32:30]} 44. Ke3 {[%clk 0:42:11]} 44... f5 {[%clk 0:31:41]} 45. Nd2
{[%clk 0:38:49]} 45... Nc5 {[%clk 0:31:30]} 46. c4+ {[%clk 0:38:16]} 46... Kd6
{[%clk 0:31:20]} 47. Kd4 {[%clk 0:34:20]} 47... g5 {[%clk 0:31:01]} 48. Kc3
{[%clk 0:34:14]} 48... f4 {[%clk 0:28:54]} 49. Kd4 {[%clk 0:33:34]} 49... Ke6
{[%clk 0:28:27]} 50. a5 {[%clk 0:33:27]} 50... Nd7 {[%clk 0:28:11]} 51. axb6
{[%clk 0:33:52]} 51... Nxb6 {[%clk 0:28:37]} 52. b4 {[%clk 0:34:17]} 52... Nd7
{[%clk 0:29:00]} 53. c5 {[%clk 0:34:43]} 53... Nf6 {[%clk 0:29:25]} 54. b5
{[%clk 0:35:07]} 54... Kd7 {[%clk 0:29:52]} 55. c6+ {[%clk 0:35:30]} 55... Kd6
{[%clk 0:30:13]} 56. Ne4+ {[%clk 0:35:56]} 1-0

[Variant "Standard"]
[Site "Europe Echecs"]

[Event "Championnat du monde jeunes U12"]
[Date "2024.11.18"]
[White "Torres Rebolledo, Alvaro"]
[Black "Skytte, Robert"]
[WhiteElo "2216"]
[BlackElo "1925"]
[Round "4.15"]
[Result "1-0"]
[TimeControl "5400+30"]

1. e4 {[%clk 1:29:54]} 1... c6 {[%clk 1:30:52]} 2. d4 {[%clk 1:30:16]} 2... d5
{[%clk 1:31:16]} 3. e5 {[%clk 1:30:42]} 3... c5 {[%clk 1:31:39]} 4. Nf3 {[%clk
1:30:59]} 4... cxd4 {[%clk 1:32:04]} 5. Qxd4 {[%clk 1:31:06]} 5... Nc6 {[%clk
1:32:24]} 6. Qf4 {[%clk 1:31:14]} 6... g6 {[%clk 1:28:22]} 7. Nc3 {[%clk
1:30:42]} 7... d4 {[%clk 1:26:45]} 8. Bc4 {[%clk 1:30:25]} 8... Bf5 {[%clk
1:25:32]} 9. Ne2 {[%clk 1:30:10]} 9... Bh6 {[%clk 1:18:02]} 10. Qg3 {[%clk
1:28:53]} 10... Qa5+ {[%clk 0:58:51]} 11. Kf1 {[%clk 0:57:21]} 11... Qc5 {[%clk
0:49:06]} 12. Bd3 {[%clk 0:55:51]} 12... Bxd3 {[%clk 0:46:59]} 13. cxd3 {[%clk
0:56:11]} 13... Rd8 {[%clk 0:43:21]} 14. Bxh6 {[%clk 0:40:49]} 14... Nxh6 {[%clk
0:43:10]} 15. Qf4 {[%clk 0:39:59]} 15... Nf5 {[%clk 0:41:43]} 16. h4 {[%clk
0:33:29]} 16... Qb5 {[%clk 0:35:10]} 17. h5 {[%clk 0:29:59]} 17... Qxb2 {[%clk
0:33:40]} 18. Re1 {[%clk 0:27:44]} 18... Nb4 {[%clk 0:27:11]} 19. e6 {[%clk
0:26:12]} 19... Nxd3 {[%clk 0:24:37]} 20. exf7+ {[%clk 0:26:21]} 20... Kf8
{[%clk 0:23:55]} 21. Qc7 {[%clk 0:25:42]} 21... Kg7 {[%clk 0:23:27]} 22. h6+
{[%clk 0:21:36]} 22... Kf6 {[%clk 0:21:33]} 23. Rd1 {[%clk 0:13:59]} 23... Rc8
{[%clk 0:21:03]} 24. Qa5 {[%clk 0:10:55]} 24... Rc5 {[%clk 0:19:46]} 25. Qxa7
{[%clk 0:09:13]} 25... Rc1 {[%clk 0:19:57]} 26. Rxc1 {[%clk 0:08:57]} 26... Nxc1
{[%clk 0:20:20]} 27. Nf4 {[%clk 0:07:31]} 27... Qb5+ {[%clk 0:19:05]} 28. Kg1
{[%clk 0:07:47]} 28... Ne2+ {[%clk 0:18:58]} 29. Nxe2 {[%clk 0:07:56]} 29...
Qxe2 {[%clk 0:19:23]} 30. Qb6+ {[%clk 0:06:43]} 30... Qe6 {[%clk 0:16:48]} 31.
Qxe6+ {[%clk 0:06:56]} 31... Kxe6 {[%clk 0:17:12]} 32. Ng5+ {[%clk 0:07:24]}
32... Kf6 {[%clk 0:17:29]} 33. f8=Q+ {[%clk 0:07:47]} 1-0

[Variant "Standard"]
[Site "Europe Echecs"]

[Event "Championnat du monde jeunes U12"]
[Date "2024.11.18"]
[White "Yin, Milo"]
[Black "Diachek, Andrii"]
[WhiteElo "1925"]
[BlackElo "2162"]
[Round "4.16"]
[Result "0-1"]
[TimeControl "5400+30"]

1. Nf3 {[%clk 1:30:33]} 1... Nf6 {[%clk 1:30:50]} 2. e3 {[%clk 1:30:39]} 2... d5
{[%clk 1:30:25]} 3. c4 {[%clk 1:30:47]} 3... e6 {[%clk 1:29:37]} 4. Nc3 {[%clk
1:30:45]} 4... Be7 {[%clk 1:29:26]} 5. b3 {[%clk 1:30:25]} 5... O-O {[%clk
1:28:56]} 6. Bb2 {[%clk 1:30:09]} 6... Nbd7 {[%clk 1:27:15]} 7. Qc2 {[%clk
1:28:49]} 7... b6 {[%clk 1:24:21]} 8. cxd5 {[%clk 1:27:44]} 8... exd5 {[%clk
1:24:42]} 9. d4 {[%clk 1:27:41]} 9... Bb7 {[%clk 1:23:54]} 10. Be2 {[%clk
1:22:20]} 10... a6 {[%clk 1:17:06]} 11. O-O {[%clk 1:18:46]} 11... Bd6 {[%clk
1:15:40]} 12. Rac1 {[%clk 1:07:30]} 12... Re8 {[%clk 1:08:08]} 13. Rfd1 {[%clk
1:04:15]} 13... Rc8 {[%clk 1:03:24]} 14. h3 {[%clk 0:56:41]} 14... h6 {[%clk
0:58:05]} 15. Bf1 {[%clk 0:50:23]} 15... c5 {[%clk 0:53:08]} 16. dxc5 {[%clk
0:41:05]} 16... bxc5 {[%clk 0:53:14]} 17. Qf5 {[%clk 0:33:57]} 17... Nb6 {[%clk
0:37:20]} 18. Rd2 {[%clk 0:24:00]} 18... d4 {[%clk 0:21:02]} 19. Rcd1 {[%clk
0:15:39]} 19... g6 {[%clk 0:17:27]} 20. Qb1 {[%clk 0:13:03]} 20... Bb8 {[%clk
0:16:12]} 21. exd4 {[%clk 0:10:16]} 21... Bxf3 {[%clk 0:13:32]} 22. gxf3 {[%clk
0:09:15]} 22... Qc7 {[%clk 0:12:03]} 23. f4 {[%clk 0:07:51]} 23... Qxf4 {[%clk
0:11:21]} 24. Bg2 {[%clk 0:08:13]} 24... Qh2+ {[%clk 0:07:09]} 25. Kf1 {[%clk
0:08:41]} 25... cxd4 {[%clk 0:03:47]} 26. Ne2 {[%clk 0:02:47]} 26... Nbd5 {[%clk
0:03:18]} 27. Bxd4 {[%clk 0:02:13]} 27... Rxe2 {[%clk 0:02:19]} 28. Rxe2 {[%clk
0:02:21]} 28... Nf4 {[%clk 0:02:39]} 29. Bb7 {[%clk 0:02:02]} 29... Nxh3 {[%clk
0:00:38]} 30. Ke1 {[%clk 0:01:23]} 30... Bf4 {[%clk 0:00:33]} 31. Be3 {[%clk
0:00:45]} 31... Bxe3 {[%clk 0:00:39]} 32. fxe3 {[%clk 0:00:59]} 32... Qg3+
{[%clk 0:00:55]} 33. Kd2 {[%clk 0:01:18]} 33... Qd6+ {[%clk 0:01:07]} 34. Ke1
{[%clk 0:01:11]} 34... Qb4+ {[%clk 0:01:30]} 35. Red2 {[%clk 0:00:40]} 35...
Qxb7 {[%clk 0:01:48]} 36. Ke2 {[%clk 0:00:33]} 36... Qg2+ {[%clk 0:01:43]} 37.
Ke1 {[%clk 0:00:48]} 37... Qg1+ {[%clk 0:00:53]} 38. Ke2 {[%clk 0:01:10]} 38...
Qf2+ {[%clk 0:00:57]} 39. Kd3 {[%clk 0:01:33]} 39... Qf5+ {[%clk 0:01:06]} 40.
Ke2 {[%clk 0:01:48]} 40... Qg4+ {[%clk 0:01:24]} 41. Kf1 {[%clk 0:01:01]} 41...
Qf3+ {[%clk 0:01:00]} 42. Rf2 {[%clk 0:01:00]} 42... Qxf2# {[%clk 0:01:16]} 0-1

[Variant "Standard"]
[Site "Europe Echecs"]

[Event "Championnat du monde jeunes U12"]
[Date "2024.11.18"]
[White "Matejka, Simon"]
[Black "Belin, Anton"]
[WhiteElo "1924"]
[BlackElo "2138"]
[Round "4.17"]
[Result "1-0"]
[TimeControl "5400+30"]

1. d4 {[%clk 1:30:36]} 1... Nf6 {[%clk 1:30:32]} 2. c4 {[%clk 1:30:34]} 2... e6
{[%clk 1:30:26]} 3. Nf3 {[%clk 1:27:31]} 3... c5 {[%clk 1:30:26]} 4. Nc3 {[%clk
1:27:28]} 4... cxd4 {[%clk 1:29:15]} 5. Nxd4 {[%clk 1:25:58]} 5... Nc6 {[%clk
1:26:27]} 6. e3 {[%clk 1:21:30]} 6... Bb4 {[%clk 1:24:24]} 7. Qd3 {[%clk
1:12:39]} 7... O-O {[%clk 1:21:27]} 8. a3 {[%clk 1:11:28]} 8... Bxc3+ {[%clk
1:20:58]} 9. Qxc3 {[%clk 1:11:53]} 9... d5 {[%clk 1:11:19]} 10. Nxc6 {[%clk
1:04:36]} 10... bxc6 {[%clk 1:11:38]} 11. c5 {[%clk 1:03:09]} 11... Ne4 {[%clk
1:09:41]} 12. Qc2 {[%clk 1:03:19]} 12... a5 {[%clk 1:09:26]} 13. Bd3 {[%clk
1:03:19]} 13... Ba6 {[%clk 1:09:37]} 14. Bxa6 {[%clk 1:00:43]} 14... Rxa6 {[%clk
1:08:58]} 15. Bd2 {[%clk 1:00:32]} 15... Qe7 {[%clk 1:07:44]} 16. Rc1 {[%clk
0:52:43]} 16... Rb8 {[%clk 1:06:35]} 17. O-O {[%clk 0:41:10]} 17... Rb5 {[%clk
1:04:54]} 18. b4 {[%clk 0:39:08]} 18... Nxd2 {[%clk 1:04:26]} 19. Qxd2 {[%clk
0:39:35]} 19... axb4 {[%clk 1:04:46]} 20. axb4 {[%clk 0:39:47]} 20... Qb7 {[%clk
1:05:00]} 21. Ra1 {[%clk 0:39:29]} 21... Rxa1 {[%clk 1:05:21]} 22. Rxa1 Rxb4
{[%clk 1:05:26]} 23. Qxb4 {[%clk 0:40:06]} 23... Qc8 {[%clk 1:05:44]} 24. Qa5
{[%clk 0:40:23]} 24... Qb7 25. Qb4 Qc8 26. Qa5 Kf8 {[%clk 1:02:30]} 27. Qa8
{[%clk 0:40:45]} 27... Qxa8 {[%clk 1:02:51]} 28. Rxa8+ {[%clk 0:41:09]} 28...
Ke7 {[%clk 1:03:15]} 29. Ra7+ {[%clk 0:41:32]} 1-0

[Variant "Standard"]
[Site "Europe Echecs"]

[Event "Championnat du monde jeunes U12"]
[Date "2024.11.18"]
[White "Ivancic, Ivan"]
[Black "Yerzhanuly Yernur"]
[WhiteElo "2091"]
[BlackElo "1917"]
[Round "4.18"]
[Result "1-0"]
[TimeControl "5400+30"]

1. e4 {[%clk 1:30:57]} 1... e5 {[%clk 1:30:53]} 2. Nf3 {[%clk 1:31:17]} 2... Nc6
{[%clk 1:31:16]} 3. d4 {[%clk 1:31:21]} 3... exd4 {[%clk 1:31:07]} 4. Nxd4
{[%clk 1:31:33]} 4... Bc5 {[%clk 1:29:18]} 5. Be3 {[%clk 1:30:25]} 5... Qf6
{[%clk 1:25:35]} 6. c3 {[%clk 1:29:04]} 6... Qg6 {[%clk 1:15:39]} 7. Qe2 {[%clk
1:25:47]} 7... Nf6 {[%clk 1:06:09]} 8. Nxc6 {[%clk 1:18:02]} 8... Bxe3 {[%clk
1:05:03]} 9. Ne5 {[%clk 1:15:32]} 9... Qg5 {[%clk 1:04:43]} 10. Nf3 {[%clk
1:12:30]} 10... Bxf2+ {[%clk 1:05:04]} 11. Kxf2 {[%clk 1:11:30]} 11... Ng4+
{[%clk 1:04:05]} 12. Kg1 {[%clk 1:02:47]} 12... Qh6 {[%clk 1:00:55]} 13. h3
{[%clk 0:57:04]} 13... Ne3 {[%clk 1:00:45]} 14. Na3 {[%clk 0:55:51]} 14... O-O
{[%clk 0:59:30]} 15. Re1 {[%clk 0:54:48]} 15... Nxf1 {[%clk 0:58:40]} 16. Kxf1
{[%clk 0:52:37]} 16... Re8 {[%clk 0:58:57]} 17. Nb5 {[%clk 0:36:55]} 17... Qb6
{[%clk 0:57:31]} 18. g3 {[%clk 0:24:56]} 18... d5 {[%clk 0:57:39]} 19. e5 {[%clk
0:24:33]} 19... Bd7 {[%clk 0:57:58]} 20. Na3 {[%clk 0:24:39]} 20... f6 {[%clk
0:56:36]} 21. Qf2 {[%clk 0:20:16]} 21... c5 {[%clk 0:54:43]} 22. Kg2 {[%clk
0:19:44]} 22... Rf8 {[%clk 0:48:37]} 23. Qd2 {[%clk 0:18:22]} 23... fxe5 {[%clk
0:47:41]} 24. Nxe5 {[%clk 0:17:53]} 24... Bf5 {[%clk 0:46:37]} 25. Rhf1 {[%clk
0:14:01]} 25... Qe6 {[%clk 0:46:05]} 26. Ng4 {[%clk 0:14:00]} 26... Be4+ {[%clk
0:46:21]} 27. Kh2 {[%clk 0:14:11]} 27... Qa6 {[%clk 0:44:38]} 28. Ne3 {[%clk
0:11:08]} 28... Qc6 {[%clk 0:43:36]} 29. Rxf8+ {[%clk 0:10:21]} 29... Rxf8
{[%clk 0:43:06]} 30. Rf1 {[%clk 0:10:44]} 30... Rd8 {[%clk 0:39:58]} 31. Qf2
{[%clk 0:08:45]} 31... h6 {[%clk 0:39:55]} 32. Qf7+ {[%clk 0:08:18]} 32... Kh8
{[%clk 0:38:59]} 33. Qe7 {[%clk 0:07:34]} 33... Re8 {[%clk 0:38:04]} 34. Rf8+
{[%clk 0:07:55]} 34... Rxf8 {[%clk 0:38:34]} 35. Qxf8+ {[%clk 0:08:24]} 35...
Kh7 {[%clk 0:39:03]} 36. Nf5 {[%clk 0:04:02]} 36... Qg6 {[%clk 0:39:22]} 37. Ne7
{[%clk 0:04:04]} 37... Qg5 {[%clk 0:39:33]} 38. Qg8# {[%clk 0:04:23]} 1-0

[Variant "Standard"]
[Site "Europe Echecs"]

[Event "Championnat du monde jeunes U12"]
[Date "2024.11.18"]
[White "Mamikonyan, Artem T"]
[Black "Obidov, Biloliddin"]
[WhiteElo "1918"]
[BlackElo "2088"]
[Round "4.19"]
[Result "1-0"]
[TimeControl "5400+30"]

1. e4 {[%clk 1:31:00]} 1... c5 {[%clk 1:30:59]} 2. Nf3 {[%clk 1:31:25]} 2... d6
{[%clk 1:31:28]} 3. d4 {[%clk 1:31:42]} 3... cxd4 {[%clk 1:31:57]} 4. Nxd4
{[%clk 1:32:07]} 4... Nf6 {[%clk 1:32:20]} 5. Nc3 {[%clk 1:32:32]} 5... a6
{[%clk 1:32:49]} 6. Rg1 {[%clk 1:32:14]} 6... e5 {[%clk 1:31:16]} 7. Nb3 {[%clk
1:30:59]} 7... Be6 {[%clk 1:23:45]} 8. g4 {[%clk 1:31:21]} 8... d5 {[%clk
1:21:30]} 9. exd5 {[%clk 1:31:45]} 9... Nxd5 {[%clk 1:21:50]} 10. Nxd5 {[%clk
1:32:10]} 10... Qxd5 {[%clk 1:22:02]} 11. Qxd5 {[%clk 1:31:46]} 11... Bxd5
{[%clk 1:22:30]} 12. Be3 {[%clk 1:32:08]} 12... Nc6 {[%clk 1:22:00]} 13. O-O-O
{[%clk 1:32:27]} 13... O-O-O {[%clk 1:19:28]} 14. Bb6 {[%clk 1:32:39]} 14... Rd7
{[%clk 1:19:08]} 15. g5 {[%clk 1:33:02]} 15... Be6 {[%clk 1:18:51]} 16. Rxd7
{[%clk 1:33:26]} 16... Bxd7 {[%clk 1:19:20]} 17. Bc4 {[%clk 1:33:47]} 17... Be6
{[%clk 1:07:12]} 18. Bxe6+ {[%clk 1:34:13]} 18... fxe6 {[%clk 1:07:40]} 19. c3
{[%clk 1:34:34]} 19... Be7 {[%clk 1:05:42]} 20. Be3 {[%clk 1:34:33]} 20... Rf8
{[%clk 1:03:46]} 21. Kc2 {[%clk 1:34:50]} 21... Kc7 {[%clk 0:51:33]} 22. Kd3
{[%clk 1:34:54]} 22... Rf3 {[%clk 0:49:58]} 23. Rg3 {[%clk 1:28:34]} 23... Rf5
{[%clk 0:50:17]} 24. Ke4 {[%clk 1:25:42]} 24... g6 {[%clk 0:47:01]} 25. h4
{[%clk 1:22:32]} 25... Nd8 {[%clk 0:47:09]} 26. Nd2 {[%clk 1:17:18]} 26... b5
{[%clk 0:40:03]} 27. Kd3 {[%clk 1:17:28]} 27... Nb7 {[%clk 0:39:03]} 28. Ne4
{[%clk 1:17:44]} 28... Kc6 {[%clk 0:39:03]} 29. b4 {[%clk 1:17:43]} 29... Kd5
{[%clk 0:36:30]} 30. Rg4 {[%clk 1:16:18]} 30... Rf8 {[%clk 0:32:26]} 31. Nd2
{[%clk 1:16:22]} 31... Nd6 {[%clk 0:31:02]} 32. Ke2 {[%clk 1:15:36]} 32... Nf5
{[%clk 0:23:31]} 33. c4+ {[%clk 1:15:27]} 33... bxc4 {[%clk 0:23:43]} 34. Nxc4
{[%clk 1:15:46]} 34... Nd4+ {[%clk 0:18:42]} 35. Kd3 {[%clk 1:16:08]} 35... Bxb4
{[%clk 0:13:26]} 36. Nxe5 {[%clk 1:14:08]} 36... Kxe5 {[%clk 0:09:56]} 37. Rxd4
{[%clk 1:09:49]} 37... a5 {[%clk 0:07:51]} 38. Rd7 {[%clk 1:10:01]} 38... Rc8
{[%clk 0:05:57]} 39. Rxh7 {[%clk 1:09:47]} 39... Rc3+ {[%clk 0:06:19]} 40. Ke2
{[%clk 1:10:14]} 40... Rc2+ {[%clk 0:02:30]} 41. Kf3 {[%clk 1:10:39]} 41... Rxa2
{[%clk 0:02:56]} 42. Bf4+ {[%clk 1:06:15]} 42... Kd5 {[%clk 0:02:57]} 43. h5
{[%clk 1:06:38]} 43... gxh5 {[%clk 0:01:20]} 44. g6 {[%clk 1:07:03]} 44... Bc5
{[%clk 0:00:34]} 45. g7 {[%clk 1:06:37]} 45... Rxf2+ {[%clk 0:00:55]} 46. Kg3
{[%clk 1:06:47]} 46... Rf1 {[%clk 0:00:37]} 47. Rxh5+ {[%clk 1:06:47]} 47... Ke4
{[%clk 0:00:33]} 48. Re5+ {[%clk 1:07:01]} 48... Kd3 {[%clk 0:00:34]} 49. Rg5
{[%clk 1:07:25]} 49... Rg1+ {[%clk 0:00:32]} 50. Kh2 {[%clk 1:07:40]} 50... Rxg5
{[%clk 0:00:31]} 51. Bxg5 {[%clk 1:08:02]} 51... Bd6+ {[%clk 0:00:40]} 52. Kg2
{[%clk 1:08:25]} 52... a4 {[%clk 0:00:32]} 53. g8=Q {[%clk 1:08:44]} 53... a3
{[%clk 0:01:01]} 54. Qxe6 {[%clk 1:09:03]} 54... Bb4 {[%clk 0:01:30]} 55. Qb3+
{[%clk 1:09:23]} 1-0

[Variant "Standard"]
[Site "Europe Echecs"]